{"text_format":"3","workbook":"xlsx","n_sheets":6,"sheets":["Myyntipuheluloki","Asiakkaan yhteystiedot","Ennen puhelua","Ensimmäinen soittokerta","Myyntitiedot","Seuranta"],"not_rendered":{"defined_names":14},"read":"whole","date_system":"1900"}

{"sheet":"Myyntipuheluloki","index":0,"n_rows":13,"n_cols":7,"rows_kept":13}
[null," Yrityksen nimi"]
[null,"Myyntipuheluloki"]
[null,"Puhelun nro","Asiakas","Yritys","Päivämäärä","Aika","Huomautukset"]
[null,1,"Jani Vasala",{"$f":"IF(Myyntipuheluloki[[#This Row],[Asiakas]]=\"\",\"\",IFERROR(VLOOKUP(Myyntipuheluloki[[#This Row],[Asiakas]],Asiakkaan_yhteystiedot[],2,0),\"Not Found\"))","v":"Proseware Oy"},{"$f":"TODAY()-5","v":"2016-10-09"},"08:30:00"]
[null,2,"Harri Mylläri",{"$f":"IF(Myyntipuheluloki[[#This Row],[Asiakas]]=\"\",\"\",IFERROR(VLOOKUP(Myyntipuheluloki[[#This Row],[Asiakas]],Asiakkaan_yhteystiedot[],2,0),\"Not Found\"))","v":"Litware Oy"},{"$f":"TODAY()-5","v":"2016-10-09"},"09:00:00"]
[null,3,"Katri Korhola",{"$f":"IF(Myyntipuheluloki[[#This Row],[Asiakas]]=\"\",\"\",IFERROR(VLOOKUP(Myyntipuheluloki[[#This Row],[Asiakas]],Asiakkaan_yhteystiedot[],2,0),\"Not Found\"))","v":"Northwind Traders Oy"},"2016-10-09","09:30:00"]
[null,4,"Viljo Kurri",{"$f":"IF(Myyntipuheluloki[[#This Row],[Asiakas]]=\"\",\"\",IFERROR(VLOOKUP(Myyntipuheluloki[[#This Row],[Asiakas]],Asiakkaan_yhteystiedot[],2,0),\"Not Found\"))","v":"Lucerne Publishing"},"2016-10-09","10:00:00"]
[null,5,"Kalevi Laurinen",{"$f":"IF(Myyntipuheluloki[[#This Row],[Asiakas]]=\"\",\"\",IFERROR(VLOOKUP(Myyntipuheluloki[[#This Row],[Asiakas]],Asiakkaan_yhteystiedot[],2,0),\"Not Found\"))","v":"Margie's Travel Oy"},"2016-10-09","10:30:00"]
[null,6,"Jani Vasala",{"$f":"IF(Myyntipuheluloki[[#This Row],[Asiakas]]=\"\",\"\",IFERROR(VLOOKUP(Myyntipuheluloki[[#This Row],[Asiakas]],Asiakkaan_yhteystiedot[],2,0),\"Not Found\"))","v":"Proseware Oy"},{"$f":"TODAY()-3","v":"2016-10-11"},"11:00:00"]
[null,7,"Harri Mylläri",{"$f":"IF(Myyntipuheluloki[[#This Row],[Asiakas]]=\"\",\"\",IFERROR(VLOOKUP(Myyntipuheluloki[[#This Row],[Asiakas]],Asiakkaan_yhteystiedot[],2,0),\"Not Found\"))","v":"Litware Oy"},{"$f":"TODAY()-3","v":"2016-10-11"},"11:30:00"]
[null,8,"Jani Vasala",{"$f":"IF(Myyntipuheluloki[[#This Row],[Asiakas]]=\"\",\"\",IFERROR(VLOOKUP(Myyntipuheluloki[[#This Row],[Asiakas]],Asiakkaan_yhteystiedot[],2,0),\"Not Found\"))","v":"Proseware Oy"},{"$f":"TODAY()-1","v":"2016-10-13"},"12:00:00"]
[null,9,"Kalevi Laurinen",{"$f":"IF(Myyntipuheluloki[[#This Row],[Asiakas]]=\"\",\"\",IFERROR(VLOOKUP(Myyntipuheluloki[[#This Row],[Asiakas]],Asiakkaan_yhteystiedot[],2,0),\"Not Found\"))","v":"Margie's Travel Oy"},{"$f":"TODAY()-1","v":"2016-10-13"},"12:30:00"]
[null,10,"Kalevi Laurinen",{"$f":"IF(Myyntipuheluloki[[#This Row],[Asiakas]]=\"\",\"\",IFERROR(VLOOKUP(Myyntipuheluloki[[#This Row],[Asiakas]],Asiakkaan_yhteystiedot[],2,0),\"Not Found\"))","v":"Margie's Travel Oy"},{"$f":"TODAY()","v":"2016-10-14"},"13:00:00"]

{"sheet":"Asiakkaan yhteystiedot","index":1,"n_rows":8,"n_cols":8,"rows_kept":8}
[null,{"$f":"Yrityksen_nimi","v":" Yrityksen nimi"}]
[null,"Asiakkaan yhteystiedot"]
[null,"Asiakkaan nimi","Yrityksen nimi","Osoite","Postinumero, postitoimipaikka","Ensisijainen puhelin","Toissijainen puhelin","Sähköposti"]
[null,"Harri Mylläri","Litware Oy","Pääkatu 100","00002 Helsinki","+358 09 555 0135","+358 09 555 0136","harri@litware.fi"]
[null,"Viljo Kurri","Lucerne Publishing","Toinen katu 567","33100 Tampere","+358 03 555 0198","+358 03 555 0199","viljo@lucernepublishing.com"]
[null,"Kalevi Laurinen","Margie's Travel Oy","Oranssikatu 987","20100 Turku","+358 02 555 0125","+358 02 555 0126","kalevi@margiestravel.fi"]
[null,"Katri Korhola","Northwind Traders Oy","Kolmas pohjoiskatu 890","90100 Oulu","+358 08 555 0175","+358 08 555 0176","katri@northwindtraders.fi"]
[null,"Jani Vasala","Proseware Oy","Päätie 123","70100 Kuopio","+358 017  555 0150","+358 017  555 0151","jani@proseware.fi"]

{"sheet":"Ennen puhelua","index":2,"n_rows":13,"n_cols":3,"rows_kept":13}
[null,{"$f":"Yrityksen_nimi","v":" Yrityksen nimi"}]
[null,"Myyntipuheluiden tarkistusluettelo"]
[null,"Valintaruutu","Ennen puhelua"]
[null,null,"Tutustu asiakkaan historiaan"]
[null,null,"Tutustu asiakkaan työnantajahistoriaan"]
[null,null,"Tarkista prioriteetit ja myynnin strategiat"]
[null,null,"Lisää kohde"]
[null,null,"Lisää kohde"]
[null,null,"Lisää kohde"]
[null,null,"Lisää kohde"]
[null,null,"Lisää kohde"]
[null,null,"Lisää kohde"]
[null,null,"Lisää kohde"]

{"sheet":"Ensimmäinen soittokerta","index":3,"n_rows":13,"n_cols":3,"rows_kept":13}
[null,{"$f":"Yrityksen_nimi","v":" Yrityksen nimi"}]
[null,"Myyntipuheluiden tarkistusluettelo"]
[null,"Valintaruutu","Ensimmäinen soittokerta"]
[null,null,"Suora puhelu oikealle henkilölle"]
[null,null,"Selkeä esittäytyminen"]
[null,null,"Lisää kohde"]
[null,null,"Lisää kohde"]
[null,null,"Lisää kohde"]
[null,null,"Lisää kohde"]
[null,null,"Lisää kohde"]
[null,null,"Lisää kohde"]
[null,null,"Lisää kohde"]
[null,null,"Lisää kohde"]

{"sheet":"Myyntitiedot","index":4,"n_rows":13,"n_cols":3,"rows_kept":13}
[null,{"$f":"Yrityksen_nimi","v":" Yrityksen nimi"}]
[null,"Myyntipuheluiden tarkistusluettelo"]
[null,"Valintaruutu","Myyntitiedot"]
[null,null,"Tuotteen/palvelun tietojen esittely selkeästi ja vakuuttavasti"]
[null,null,"Kaikkien perusasioiden kertominen"]
[null,null,"Verkko-tavoitettavuuden (kuten sivusto, yhteisöpalvelut) mainitseminen"]
[null,null,"Lisää kohde"]
[null,null,"Lisää kohde"]
[null,null,"Lisää kohde"]
[null,null,"Lisää kohde"]
[null,null,"Lisää kohde"]
[null,null,"Lisää kohde"]
[null,null,"Lisää kohde"]

{"sheet":"Seuranta","index":5,"n_rows":13,"n_cols":3,"rows_kept":13}
[null,{"$f":"Yrityksen_nimi","v":" Yrityksen nimi"}]
[null,"Myyntipuheluiden tarkistusluettelo"]
[null,"Valintaruutu","Seurantatiedot"]
[null,null,"Asiakkaan yhteystiedot"]
[null,null,"Asiakkaan henkilökohtaiset tiedot"]
[null,null,"Asiakkaan mieltymykset"]
[null,null,"Uudelleen sovittu yhteydenoton ajankohta?"]
[null,null,"Onko myynti tehty?"]
[null,null,"Lisää kohde"]
[null,null,"Lisää kohde"]
[null,null,"Lisää kohde"]
[null,null,"Lisää kohde"]
[null,null,"Lisää kohde"]